{"text_format":"1","workbook":"xlsx","n_sheets":2,"sheets":["QR-IBAN-CALCOLO","MOD97"],"not_rendered":{"charts":0,"images":1,"macros":1,"external_links":0,"defined_names":1,"comments":0,"pivot_tables":0},"unopened":[],"bounds":{"document_bytes":16777216,"sheet_cells":100000,"rows_first":2000,"rows_last":500,"rows_between":2000,"halvings":0,"cell_chars":16384,"cell_head_chars":4096},"cells_cut":0,"cells_raw":0,"read":"whole","date_system":"1900"}

{"sheet":"QR-IBAN-CALCOLO","index":0,"n_rows":46,"n_cols":10,"rows_kept":46,"cut":false,"hidden":false,"merged":[[1,2,2,7]]}
[]
[null,null,"Calcolatore di QR-IBAN \nper conti BancaStato"]
[]
[]
[null,"CONTO IBAN STANDARD DEL CLIENTE","CH0000000000000000000",null,null,null,null,"CARATTERE","IBAN","DIGITS"]
[null,"CONVERSIONE IN FORMATO QR-IBAN",{"$f":"C38","v":"CH5930764000000000000"},null,null,null,null,1,{"$f":"MID($C$32,H6,1)","v":"3"},{"$f":"IF(CODE(LOWER(I6))-87<10,CODE(LOWER(I6))-87+39,CODE(LOWER(I6))-87)","v":3}]
[null,null,null,null,null,null,null,2,{"$f":"MID($C$32,H7,1)","v":"0"},{"$f":"IF(CODE(LOWER(I7))-87<10,CODE(LOWER(I7))-87+39,CODE(LOWER(I7))-87)","v":0}]
[null,"Il formato QR permette di emettere polizze e fatture con o senza numero di riferimento strutturato."]
[]
[null,"Fatture e polizze QR associate ad un numero di riferimento strutturato sostituiranno le polizze di pagamento arancioni"]
[null,"Fatture e polizze QR senza alcun numero di riferimento strutturato sostituiranno le polizze rosse"]
[]
[null,"Con fatture e polizze QR è quindi possibile avvalersi delle seguenti tipologie di numeri di riferimento strutturato:"]
[]
[null,{"$f":"\"1. Nessun numero di riferimento (attuale polizze rosse) | per fatturazioni in CHF in Svizzera e Liechtenstein\"","v":"1. Nessun numero di riferimento (attuale polizze rosse) | per fatturazioni in CHF in Svizzera e Liechtenstein"}]
[null,{"$f":"\"2. Riferimento PVR o QR (attuali polizze arancioni) | per fatturazioni in CHF in Svizzera e Liechtenstein\"","v":"2. Riferimento PVR o QR (attuali polizze arancioni) | per fatturazioni in CHF in Svizzera e Liechtenstein"}]
[null,{"$f":"\"3. Creditor Reference o Ref Type SCOR (ISO 11649) | per fatturazioni internazionali \"","v":"3. Creditor Reference o Ref Type SCOR (ISO 11649) | per fatturazioni internazionali "}]
[]
[null,"Per la tipologìa 1. e 3. il cliente deve indicare sulla fattura o polizza QR il proprio numero di conto in formato IBAN."]
[null,"Per la tipologìa 2. è invece obbligatorio utilizzare il nuovo numero di conto QR-IBAN."]
[]
[null,"Questo foglio di calcolo permette di calcolare facilmente il proprio conto QR-IBAN a partire dal proprio numero di"]
[null,"conto IBAN attuale"]
[]
[null,"Ulteriori informazioni su www.bancastato.ch/qr"]
[]
[]
[null,null,null,null,null,null,null,3,{"$f":"MID($C$32,H28,1)","v":"7"},7]
[null,"STEP 1: QR-IBAN-NO-CHECK-DIGIT",{"$f":"CONCATENATE(MID(C5,1,2),\"0030764\",MID(C5,10,12))","v":"CH0030764000000000000"},null,null,null,null,4,{"$f":"MID($C$32,H29,1)","v":"6"},6]
[null,"STEP 2:",{"$f":"CONCATENATE(MID(C29,1,2),\"00\")","v":"CH00"},null,null,null,null,5,{"$f":"MID($C$32,H30,1)","v":"4"},4]
[null,"STEP 3a:",{"$f":"MID(C29,5,18)","v":"30764000000000000"},null,null,null,null,6,{"$f":"MID($C$32,H31,1)","v":"0"},0]
[null,"STEP 3b:",{"$f":"CONCATENATE(C31,C30)","v":"30764000000000000CH00"},null,null,null,null,7,{"$f":"MID($C$32,H32,1)","v":"0"},0]
[null,"STEP 4:",{"$f":"CONCATENATE(J6,J7,J28,J29,J30,J31,J32,J33,J34,J35,J36,J37,J38,J39,J40,J41,J42,J43,J44,J45,J46)","v":"30764000000000000121700"},null,null,null,null,8,{"$f":"MID($C$32,H33,1)","v":"0"},0]
[null,"STEP 5:",{"$f":"C33","v":"30764000000000000121700"},null,null,null,null,9,{"$f":"MID($C$32,H34,1)","v":"0"},0]
[null,"STEP 6:",{"$f":"'MOD97'!B2","v":39},null,null,null,null,10,{"$f":"MID($C$32,H35,1)","v":"0"},0]
[null,"STEP 7:",{"$f":"98-C35","v":59},null,null,null,null,11,{"$f":"MID($C$32,H36,1)","v":"0"},0]
[null,"STEP 8:",{"$f":"IF(C36<10,CONCATENATE(\"0\",C36),C36)","v":59},null,null,null,null,12,{"$f":"MID($C$32,H37,1)","v":"0"},0]
[null,"QR-IBAN FINALE",{"$f":"CONCATENATE(\"CH\",C37,C31)","v":"CH5930764000000000000"},null,null,null,null,13,{"$f":"MID($C$32,H38,1)","v":"0"},0]
[null,null,null,null,null,null,null,14,{"$f":"MID($C$32,H39,1)","v":"0"},0]
[null,null,null,null,null,null,null,15,{"$f":"MID($C$32,H40,1)","v":"0"},0]
[null,null,null,null,null,null,null,16,{"$f":"MID($C$32,H41,1)","v":"0"},0]
[null,null,null,null,null,null,null,17,{"$f":"MID($C$32,H42,1)","v":"0"},0]
[null,null,null,null,null,null,null,18,{"$f":"MID($C$32,H43,1)","v":"C"},12]
[null,null,null,null,null,null,null,19,{"$f":"MID($C$32,H44,1)","v":"H"},17]
[null,null,null,null,null,null,null,20,{"$f":"MID($C$32,H45,1)","v":"0"},0]
[null,null,null,null,null,null,null,21,{"$f":"MID($C$32,H46,1)","v":"0"},0]

{"sheet":"MOD97","index":1,"n_rows":2,"n_cols":2,"rows_kept":2,"cut":false,"hidden":true,"merged":[]}
["BBAN","GetIban"]
[{"$f":"'QR-IBAN-CALCOLO'!C33","v":"30764000000000000121700"},{"$f":"GetMod97(Tabel1[[#This Row],[BBAN]])","v":39}]